fUSD/lending_fUSD_20250112
["ID","MTS","AMOUNT","RATE_DAILY","PERIOD"]
[348645291,1736697074193,-830.72,0.00011333,2]
[348645292,1736697074203,-756.13,0.00011333,2]
[348645293,1736697074213,-526.8,0.00011333,2]
[348645294,1736697074222,-513.62,0.00011333,2]
[348645295,1736697074232,-500.0,0.00011333,2]
[348645296,1736697074243,-750.84,0.00011333,2]
[348645297,1736697074252,-500.0,0.00011333,2]
[348645298,1736697074263,-500.0,0.00011333,2]
[348645299,1736697074273,-970.91,0.00011333,2]
[348645300,1736697074282,-500.0,0.00011333,2]
[348645301,1736697074292,-669.43,0.00011333,2]
[348645302,1736697074301,-859.87,0.00011333,2]
[348645303,1736697074309,-500.0,0.00011333,2]
[348645304,1736697074319,-500.0,0.00011333,2]
[348645305,1736697074329,-971.19,0.00011333,2]
[348645306,1736697074339,-542.43,0.00011333,2]
[348645307,1736697074347,-500.0,0.00011333,2]
[348645308,1736697074357,-675.05,0.00011333,2]
[348645309,1736697074366,-500.0,0.00011333,2]
[348645310,1736697074375,-500.0,0.00011333,2]
[348645311,1736697074384,-865.52,0.00011333,2]
[348645312,1736697074393,-1015.09,0.00011333,2]
[348645313,1736697074402,-671.39,0.00011333,2]
[348645314,1736697074412,-500.0,0.00011333,2]
[348645315,1736697074422,-956.97,0.00011333,2]
[348645316,1736697074431,-500.0,0.00011333,2]
[348645317,1736697074440,-500.0,0.00011333,2]
[348645318,1736697074449,-879.51,0.00011333,2]
[348645319,1736697074459,-811.4,0.00011333,2]
[348645320,1736697074468,-616.16,0.00011333,2]
[348645321,1736697074478,-909.19,0.00011333,2]
[348645322,1736697074487,-909.34,0.00011333,2]
[348645323,1736697074497,-602.81,0.00011333,2]
[348645324,1736697074507,-719.32,0.00011333,2]
[348645325,1736697074516,-1857.19,0.00011333,2]
[348645326,1736697074525,-500.0,0.00011333,2]
[348645327,1736697074535,-718.02,0.00011333,2]
[348645328,1736697074544,-531.49,0.00011333,2]
[348645329,1736697074554,-840.11,0.00011333,2]
[348645330,1736697074563,-500.0,0.00011333,2]
[348645331,1736697074573,-995.57,0.00011333,2]
[348645332,1736697074583,-616.45,0.00011333,2]
[348645333,1736697074592,-500.0,0.00011333,2]
[348645334,1736697074602,-500.0,0.00011333,2]
[348645335,1736697074611,-941.17,0.00011333,2]
[348645336,1736697074620,-4755.32,0.00011333,2]
[348645337,1736697074630,-1038.78,0.00011333,2]
[348645338,1736697074640,-681.9,0.00011333,2]
[348645339,1736697074650,-1057.81,0.00011333,2]
[348645340,1736697074660,-1304.82,0.00011333,2]
[348645341,1736697074670,-876.54,0.00011333,2]
[348645342,1736697074680,-530.36,0.00011333,2]
[348645343,1736697074689,-926.71,0.00011333,2]
[348645344,1736697074699,-3630.65,0.00011333,2]
[348645345,1736697074709,-928.78,0.00011333,2]
[348645346,1736697074719,-511.33,0.00011333,2]
[348645347,1736697074728,-607.56,0.00011333,2]
[348645348,1736697074739,-500.0,0.00011333,2]
[348645349,1736697074748,-652.54,0.00011333,2]
[348645350,1736697074757,-876.52,0.00011333,2]
[348645351,1736697074767,-933.85,0.00011333,2]
[348645352,1736697074777,-500.0,0.00011333,2]
[348645353,1736697074788,-835.24,0.00011333,2]
[348645354,1736697074798,-234.11917836,0.00011333,2]
[348645355,1736697074808,-1557.36,0.00011334,2]
[348645356,1736697074817,-2525.02,0.00011334,2]
[348645357,1736697074829,-151.0,0.00011335,2]
[348645358,1736697074837,-1114.65,0.00011335,2]
[348645359,1736697074847,-710.95,0.00011335,2]
[348645360,1736697074862,-826.55,0.00011335,2]
[348645361,1736697074874,-2055.37,0.00011335,2]
[348645362,1736697074885,-500.0,0.00011335,2]
[348645363,1736697074894,-929.05,0.00011335,2]
[348645364,1736697074905,-1280.25,0.00011335,2]
[348645365,1736697074915,-1692.05,0.00011335,2]
[348645366,1736697074925,-511.69,0.00011335,2]
[348645367,1736697074936,-500.0,0.0001134,2]
[348645368,1736697074947,-150.0,0.0001134,2]
[348645369,1736697074957,-150.0,0.0001134,2]
[348645370,1736697074967,-266.88775563,0.0001134,2]
[348645371,1736697074977,-500.0,0.0001134,2]
[348645372,1736697074988,-150.0,0.0001134,2]
[348645373,1736697074999,-150.09140942,0.0001134,2]
[348645374,1736697075010,-245.27525467,0.0001134,2]
[348645375,1736697075020,-500.0,0.0001134,2]
[348645376,1736697075030,-150.0,0.0001134,2]
[348645377,1736697075041,-437.93,0.00011342,2]
[348645378,1736697075052,-772.19,0.00011342,2]
[348645379,1736697075061,-208.39,0.00011342,2]
[348645380,1736697075072,-437.93,0.00011342,2]
[348645381,1736697075082,-436.33,0.00011342,2]
[348645382,1736697075091,-500.0,0.00011343,2]
[348645383,1736697075101,-500.0,0.00011343,2]
[348645384,1736697075111,-500.0,0.00011343,2]
[348645385,1736697075122,-2304.99,0.00011344,2]
[348645386,1736697075131,-2029.77,0.00011344,2]
[348645387,1736697075141,-956.09,0.00011352,2]
[348645388,1736697075151,-500.0,0.00011352,2]
[348645389,1736697075161,-2118.02,0.00011352,2]
[348645390,1736697075172,-500.0,0.00011367,2]
[348645391,1736697075181,-169.63713041,0.00011367,2]
[348645392,1736697075191,-150.0,0.00011367,2]
[348645393,1736697075202,-921.70682541,0.00011367,2]
[348645394,1736697075214,-150.0,0.00011367,2]
[348645395,1736697075223,-500.0,0.00011367,2]
[348645396,1736697075233,-666.0,0.00011368,2]
[348645397,1736697075245,-172.55945022,0.00011368,2]
[348645398,1736697075255,-500.0,0.00011369,2]
[348645399,1736697075265,-3599.07,0.00011369,2]
[348645400,1736697075275,-1288.35,0.00011369,2]
[348645401,1736697075285,-750.48,0.00011369,2]
[348645402,1736697075296,-500.0,0.00011369,2]
[348645403,1736697075306,-1532.98,0.00011369,2]
[348645404,1736697075317,-1003.85,0.00011369,2]
[348645405,1736697075326,-752.39,0.00011369,2]
[348645406,1736697075336,-686.26,0.00011369,2]
[348645407,1736697075346,-1517.54,0.00011369,2]
[348645408,1736697075355,-1041.09,0.00011369,2]
[348645409,1736697075365,-1690.55,0.00011369,2]
[348645410,1736697075375,-656.28,0.00011369,2]
[348645411,1736697075385,-1441.36,0.00011369,2]
[348645412,1736697075395,-957.88,0.00011369,2]
[348645413,1736697075405,-3318.45,0.00011369,2]
[348645414,1736697075415,-1586.76,0.00011369,2]
[348645415,1736697075424,-2707.36070245,0.00011393,2]
[348645416,1736697075434,-500.0,0.00011395,2]
[348645417,1736697075444,-244.7250172,0.00011395,2]
[348645418,1736697075453,-150.0,0.00011395,2]
[348645419,1736697075463,-500.0,0.00011395,2]
[348645420,1736697075473,-500.0,0.00011422,2]
[348645421,1736697075483,-186.0,0.00011422,2]
[348645422,1736697075492,-500.0,0.00011422,2]
[348645423,1736697075502,-1025.85,0.00011443,2]
[348645424,1736697075512,-1000.86,0.00011443,2]
[348645425,1736697075522,-1807.13,0.00011443,2]
[348645426,1736697075532,-1731.84,0.00011443,2]
[348645427,1736697075541,-500.0,0.00011443,2]
[348645428,1736697075552,-500.0,0.00011443,2]
[348645429,1736697075562,-500.0,0.00011443,2]
[348645430,1736697075572,-500.0,0.00011443,2]
[348645431,1736697075582,-618.29,0.00011443,2]
[348645432,1736697075592,-500.0,0.00011443,2]
[348645433,1736697075602,-500.0,0.00011443,2]
[348645434,1736697075612,-2072.93,0.00011443,2]
[348645435,1736697075622,-1117.87,0.00011443,2]
[348645436,1736697075632,-500.0,0.00011443,2]
[348645437,1736697075642,-1147.23,0.00011443,2]
[348645438,1736697075652,-967.28,0.00011443,2]
[348645439,1736697075662,-3016.7,0.00011443,2]
[348645440,1736697075672,-500.0,0.00011443,2]
[348645441,1736697075682,-1223.14,0.00011443,2]
[348645442,1736697075692,-500.0,0.00011443,2]
[348645443,1736697075702,-2536.94,0.00011443,2]
[348645444,1736697075712,-508.96,0.00011443,2]
[348645445,1736697075722,-8763.14,0.00011443,2]
[348645446,1736697075732,-2810.61,0.00011443,2]
[348645447,1736697075743,-2693.5,0.00011443,2]
[348645448,1736697075752,-500.0,0.00011443,2]
[348645449,1736697075762,-948.79,0.00011443,2]
[348645450,1736697075771,-500.0,0.00011443,2]
[348645451,1736697075782,-1322.63,0.00011443,2]
[348645452,1736697075792,-505.41,0.00011443,2]
[348645453,1736697075802,-2001.07,0.00011443,2]
[348645454,1736697075811,-2517.71,0.00011443,2]
[348645455,1736697075822,-500.0,0.00011443,2]
[348645456,1736697075833,-500.0,0.00011443,2]
[348645457,1736697075842,-2409.15,0.00011443,2]
[348645458,1736697075852,-1313.54,0.00011443,2]
[348645459,1736697075862,-2545.11,0.00011443,2]
[348645460,1736697075873,-720.83,0.00011443,2]
[348645461,1736697075883,-1463.12,0.00011443,2]
[348645462,1736697075893,-633.45,0.00011443,2]
[348645463,1736697075902,-3650.22,0.00011443,2]
[348645464,1736697075913,-2221.48,0.00011443,2]
[348645465,1736697075923,-500.0,0.00011443,2]
[348645466,1736697075932,-905.13,0.00011443,2]
[348645467,1736697075942,-500.0,0.00011443,2]
[348645468,1736697075952,-1406.9,0.00011443,2]
[348645469,1736697075963,-4088.45,0.00011443,2]
[348645470,1736697075973,-2387.93,0.00011443,2]
[348645471,1736697075982,-500.0,0.00011443,2]
[348645472,1736697075992,-3256.32,0.00011443,2]
[348645473,1736697076003,-672.97,0.00011443,2]
[348645474,1736697076013,-567.47,0.00011443,2]
[348645475,1736697076022,-500.0,0.00011443,2]
[348645476,1736697076032,-785.13,0.00011443,2]
[348645477,1736697076041,-500.0,0.00011443,2]
[348645478,1736697076050,-1201.01,0.00011443,2]
[348645479,1736697076059,-1852.27,0.00011443,2]
[348645480,1736697076069,-500.0,0.00011443,2]
[348645481,1736697076079,-785.24,0.00011443,2]
[348645482,1736697076088,-1285.04,0.00011443,2]
[348645483,1736697076098,-603.94,0.00011443,2]
[348645484,1736697076107,-398.11677717,0.00011446,2]
[348645485,1736697076116,-500.0,0.0001145,2]
[348645486,1736697076125,-500.0,0.0001145,2]
[348645487,1736697076135,-2707.36070245,0.00011466,2]
[348645488,1736697076144,-500.0,0.00011477,2]
[348645489,1736697076153,-921.88123276,0.00011477,2]
[348645490,1736697076162,-980.0731,0.00011499,2]
[348645491,1736697076171,-500.0,0.00011504,2]
[348645492,1736697076180,-666.0,0.00011505,2]
[348645493,1736697076190,-500.0,0.00011506,2]
[348645494,1736697076199,-500.0,0.00011506,2]
[348645495,1736697076208,-500.0,0.00011506,2]
[348645496,1736697076217,-607.7,0.00011506,2]
[348645497,1736697076227,-500.0,0.00011506,2]
[348645498,1736697076236,-500.0,0.00011506,2]
[348645499,1736697076245,-500.0,0.00011506,2]
[348645500,1736697076255,-500.0,0.00011506,2]
[348645501,1736697076264,-500.0,0.00011506,2]
[348645502,1736697076273,-500.0,0.00011506,2]
[348645503,1736697076403,-897.41,0.00011506,2]
[348645504,1736697076426,-500.0,0.00011506,2]
[348645505,1736697076436,-500.0,0.00011506,2]
[348645506,1736697076447,-651.1,0.00011506,2]
[348645507,1736697076457,-500.0,0.00011506,2]
[348645508,1736697076468,-573.91,0.00011506,2]
[348645509,1736697076478,-500.0,0.00011506,2]
[348645510,1736697076488,-500.0,0.00011506,2]
[348645511,1736697076498,-500.0,0.00011506,2]
[348645512,1736697076508,-500.0,0.00011506,2]
[348645513,1736697076518,-500.0,0.00011506,2]
[348645514,1736697076527,-256.98639979,0.00011506,2]
[348645515,1736697076536,-500.0,0.00011506,2]
[348645516,1736697076546,-500.0,0.00011506,2]
[348645517,1736697076555,-708.77,0.00011506,2]
[348645518,1736697076564,-622.73,0.00011506,2]
[348645519,1736697076573,-500.0,0.00011506,2]
[348645520,1736697076583,-677.81,0.00011506,2]
[348645521,1736697076593,-500.0,0.00011506,2]
[348645522,1736697076604,-600.78,0.00011506,2]
[348645523,1736697076614,-500.0,0.00011506,2]
[348645524,1736697076624,-358.21827669,0.00011506,2]
[348645525,1736697076634,-500.0,0.00011506,2]
[348645526,1736697076644,-500.0,0.00011506,2]
[348645527,1736697076653,-500.0,0.00011506,2]
[348645528,1736697076663,-508.11,0.00011506,2]
[348645529,1736697076672,-500.0,0.00011506,2]
[348645530,1736697076682,-500.0,0.00011506,2]
[348645531,1736697076692,-500.0,0.00011506,2]
[348645532,1736697076701,-605.63,0.00011506,2]
[348645533,1736697076710,-500.0,0.00011506,2]
[348645534,1736697076720,-611.43,0.00011506,2]
[348645535,1736697076730,-573.28,0.00011506,2]
[348645536,1736697076739,-807.75,0.00011506,2]
[348645537,1736697076748,-500.0,0.00011506,2]
[348645538,1736697076758,-500.0,0.00011506,2]
[348645539,1736697076767,-885.24,0.00011506,2]
[348645540,1736697076777,-677.43,0.00011506,2]
[348645541,1736697076786,-538.14,0.00011506,2]
[348645542,1736697076796,-683.1,0.00011506,2]
[348645543,1736697076805,-582.99,0.00011506,2]
[348645544,1736697076815,-732.47,0.00011506,2]
[348645545,1736697076825,-659.43,0.00011506,2]
[348645546,1736697076835,-500.0,0.00011506,2]
[348645547,1736697076844,-500.0,0.00011506,2]
[348645548,1736697076853,-677.35,0.00011506,2]
[348645549,1736697076864,-500.0,0.00011506,2]
[348645550,1736697076873,-550.29,0.00011506,2]
[348645551,1736697076882,-508.0,0.00011506,2]
[348645552,1736697076892,-500.0,0.00011506,2]
[348645553,1736697076901,-500.0,0.00011506,2]
[348645554,1736697076910,-633.26,0.00011506,2]
[348645555,1736697076919,-500.0,0.00011506,2]
[348645556,1736697076928,-500.0,0.00011506,2]
[348645557,1736697076938,-500.0,0.00011506,2]
[348645558,1736697076948,-500.0,0.00011506,2]
[348645559,1736697076957,-615.11,0.00011506,2]
[348645560,1736697076966,-500.0,0.00011506,2]
[348645561,1736697076975,-626.46,0.00011506,2]
[348645562,1736697076985,-500.0,0.00011506,2]
[348645563,1736697076995,-500.0,0.00011506,2]
[348645564,1736697077005,-303.36191034,0.00011506,2]
[348645565,1736697077015,-641.64,0.00011506,2]
[348645566,1736697077024,-750.91,0.00011506,2]
[348645567,1736697077034,-887.79,0.00011506,2]
[348645568,1736697077043,-500.0,0.00011506,2]
[348645569,1736697077053,-500.0,0.00011506,2]
[348645570,1736697077063,-500.0,0.00011506,2]
[348645571,1736697077073,-500.0,0.00011506,2]
[348645572,1736697077083,-500.0,0.00011506,2]
[348645573,1736697077092,-500.0,0.00011506,2]
[348645574,1736697077102,-566.54,0.00011506,2]
[348645575,1736697077111,-500.0,0.00011506,2]
[348645576,1736697077122,-500.0,0.00011506,2]
[348645577,1736697077132,-1010.06,0.00011506,2]
[348645578,1736697077141,-873.67,0.00011506,2]
[348645579,1736697077151,-500.0,0.00011506,2]
[348645580,1736697077161,-1283.08,0.00011506,2]
[348645581,1736697077170,-989.43,0.00011506,2]
[348645582,1736697077179,-500.0,0.00011506,2]
[348645583,1736697077188,-500.0,0.00011506,2]
[348645584,1736697077197,-655.72,0.00011506,2]
[348645585,1736697077206,-500.0,0.00011506,2]
[348645586,1736697077216,-500.0,0.00011506,2]
[348645587,1736697077225,-628.62,0.00011506,2]
[348645588,1736697077236,-511.45875366,0.00011506,2]
[348645589,1736697077247,-500.0,0.00011506,2]
[348645590,1736697077258,-541.0,0.00011506,2]
[348645591,1736697077268,-500.0,0.00011506,2]
[348645592,1736697077278,-768.84,0.00011506,2]
[348645593,1736697077288,-581.22,0.00011506,2]
[348645594,1736697077297,-500.0,0.00011506,2]
[348645595,1736697077306,-500.0,0.00011506,2]
[348645596,1736697077315,-510.04,0.00011506,2]
[348645597,1736697077325,-500.0,0.00011506,2]
[348645598,1736697077335,-897.21,0.00011506,2]
[348645599,1736697077345,-553.28,0.00011506,2]
[348645600,1736697077354,-500.0,0.00011506,2]
[348645601,1736697077364,-3286.55,0.00011507,2]
[348645602,1736697077373,-661.81,0.00011507,2]
[348645603,1736697077382,-541.11,0.00011507,2]
[348645604,1736697077392,-826.26,0.00011507,2]
[348645605,1736697077401,-403.56041423,0.00011507,2]
[348645606,1736697077411,-3187.41,0.00011507,2]
[348645607,1736697077420,-758.23,0.00011507,2]
[348645608,1736697077429,-642.94,0.00011507,2]
[348645609,1736697077439,-500.0,0.00011507,2]
[348645610,1736697077448,-562.05,0.00011507,2]
[348645611,1736697077458,-849.12,0.00011507,2]
[348645612,1736697077468,-500.0,0.00011507,2]
[348645613,1736697077477,-1543.68,0.00011507,2]
[348645614,1736697077486,-417.67351192,0.00011507,2]
[348645615,1736697077496,-564.14,0.00011507,2]
[348645616,1736697077505,-500.0,0.00011507,2]
[348645617,1736697077514,-1103.08,0.00011507,2]
[348645618,1736697077523,-3717.27,0.00011507,2]
[348645619,1736697077533,-700.7,0.00011507,2]
[348645620,1736697077542,-1059.0,0.00011507,2]
[348645621,1736697077551,-500.0,0.00011507,2]
[348645622,1736697077562,-1152.57,0.00011507,2]
[348645623,1736697077571,-500.0,0.00011507,2]
[348645624,1736697077581,-724.12,0.00011507,2]
[348645625,1736697077590,-861.44,0.00011507,2]
[348645626,1736697077600,-500.0,0.00011507,2]
[348645627,1736697077610,-500.0,0.00011507,2]
[348645628,1736697077619,-500.0,0.00011507,2]
[348645629,1736697077630,-1488.76,0.00011507,2]
[348645630,1736697077639,-1175.02,0.00011507,2]
[348645631,1736697077649,-1597.05,0.00011507,2]
[348645632,1736697077658,-1574.14,0.00011507,2]
[348645633,1736697077668,-1574.14,0.00011507,2]
[348645634,1736697077678,-2211.26,0.00011507,2]
[348645635,1736697077687,-2119.12,0.00011507,2]
[348645636,1736697077698,-1594.15,0.00011507,2]
[348645637,1736697077708,-2130.38,0.00011507,2]
[348645638,1736697077718,-492.35355024,0.00011507,2]
[348645639,1736697077728,-1172.47,0.00011507,2]
[348645640,1736697077741,-2794.07,0.00011507,2]
[348645641,1736697077752,-1539.11,0.00011507,2]
[348645642,1736697077761,-1212.36,0.00011507,2]
[348645643,1736697077771,-4615.15,0.00011507,2]
[348645644,1736697077781,-989.21,0.00011507,2]
[348645645,1736697077790,-988.3,0.00011507,2]
[348645646,1736697077801,-1500.0,0.00011522,2]
[348645647,1736697077811,-500.0,0.00011532,2]
[348645648,1736697077821,-2707.36070245,0.00011538,2]
[348645649,1736697077831,-500.0,0.00011559,2]
[348645650,1736697077840,-903.08,0.00011607,2]
[348645651,1736697077851,-669.21,0.00011607,2]
[348645652,1736697077861,-688.56,0.00011607,2]
[348645653,1736697077875,-500.0,0.00011607,2]
[348645654,1736697077885,-885.95,0.00011607,2]
[348645655,1736697077894,-611.64,0.00011607,2]
[348645656,1736697077903,-814.39,0.00011607,2]
[348645657,1736697077915,-548.55,0.00011607,2]
[348645658,1736697077924,-500.0,0.00011607,2]
[348645659,1736697077934,-500.0,0.00011607,2]
[348645660,1736697077944,-764.62,0.00011607,2]
[348645661,1736697077954,-652.34,0.00011607,2]
[348645662,1736697077963,-500.0,0.00011607,2]
[348645663,1736697077973,-500.0,0.00011607,2]
[348645664,1736697077982,-830.72,0.00011607,2]
[348645665,1736697077992,-756.13,0.00011607,2]
[348645666,1736697078002,-526.8,0.00011607,2]
[348645667,1736697078011,-513.62,0.00011607,2]
[348645668,1736697078020,-500.0,0.00011607,2]
[348645669,1736697078030,-750.84,0.00011607,2]
[348645670,1736697078039,-500.0,0.00011607,2]
[348645671,1736697078050,-500.0,0.00011607,2]
[348645672,1736697078060,-970.91,0.00011607,2]
[348645673,1736697078069,-500.0,0.00011607,2]
[348645674,1736697078080,-669.43,0.00011607,2]
[348645675,1736697078090,-859.87,0.00011607,2]
[348645676,1736697078099,-500.0,0.00011607,2]
[348645677,1736697078108,-500.0,0.00011607,2]
[348645678,1736697078117,-971.19,0.00011607,2]
[348645679,1736697078126,-542.43,0.00011607,2]
[348645680,1736697078136,-500.0,0.00011607,2]
[348645681,1736697078145,-675.05,0.00011607,2]
[348645682,1736697078155,-500.0,0.00011607,2]
[348645683,1736697078164,-500.0,0.00011607,2]
[348645684,1736697078173,-1015.09,0.00011607,2]
[348645685,1736697078182,-865.52,0.00011607,2]
[348645686,1736697078192,-671.39,0.00011607,2]
[348645687,1736697078202,-500.0,0.00011607,2]
[348645688,1736697078212,-956.97,0.00011607,2]
[348645689,1736697078221,-500.0,0.00011607,2]
[348645690,1736697078231,-483.17365733,0.00011607,2]
[348645691,1736697078240,-879.51,0.00011607,2]
[348645692,1736697078250,-811.4,0.00011607,2]
[348645693,1736697078260,-616.16,0.00011607,2]
[348645694,1736697078270,-909.19,0.00011607,2]
[348645695,1736697078280,-909.34,0.00011607,2]
[348645696,1736697078289,-602.81,0.00011607,2]
[348645697,1736697078299,-719.32,0.00011607,2]
[348645698,1736697078308,-1857.19,0.00011607,2]
[348645699,1736697078318,-500.0,0.00011607,2]
[348645700,1736697078330,-718.02,0.00011607,2]
[348645701,1736697078450,-531.49,0.00011607,2]
[348645702,1736697078474,-840.11,0.00011607,2]
[348645703,1736697078484,-500.0,0.00011607,2]
[348645704,1736697078494,-995.57,0.00011607,2]
[348645705,1736697078504,-616.45,0.00011607,2]
[348645706,1736697078515,-500.0,0.00011607,2]
[348645707,1736697078524,-500.0,0.00011607,2]
[348645708,1736697078534,-941.17,0.00011607,2]
[348645709,1736697078544,-4755.32,0.00011607,2]
[348645710,1736697078554,-1038.78,0.00011607,2]
[348645711,1736697078565,-681.9,0.00011607,2]
[348645712,1736697078575,-1057.81,0.00011607,2]
[348645713,1736697078585,-1304.82,0.00011607,2]
[348645714,1736697078596,-876.54,0.00011607,2]
[348645715,1736697078606,-530.36,0.00011607,2]
[348645716,1736697078616,-926.71,0.00011607,2]
[348645717,1736697078627,-3630.65,0.00011607,2]
[348645718,1736697078637,-928.78,0.00011607,2]
[348645719,1736697078646,-511.33,0.00011607,2]
[348645720,1736697078656,-607.56,0.00011607,2]
[348645721,1736697078666,-500.0,0.00011607,2]
[348645722,1736697078677,-652.54,0.00011607,2]
[348645723,1736697078687,-876.52,0.00011607,2]
[348645724,1736697078698,-933.85,0.00011607,2]
[348645725,1736697078708,-500.0,0.00011607,2]
[348645726,1736697078719,-835.24,0.00011607,2]
[348645727,1736697078729,-1557.36,0.00011608,2]
[348645728,1736697078739,-2525.02,0.00011608,2]
[348645729,1736697078750,-1114.65,0.00011609,2]
[348645730,1736697078760,-710.95,0.00011609,2]
[348645731,1736697078770,-826.55,0.00011609,2]
[348645732,1736697078780,-2055.37,0.00011609,2]
[348645733,1736697078790,-500.0,0.00011609,2]
[348645734,1736697078800,-929.05,0.00011609,2]
[348645735,1736697078810,-1280.25,0.00011609,2]
[348645736,1736697078820,-1692.05,0.00011609,2]
[348645737,1736697078830,-511.69,0.00011609,2]
[348645738,1736697078840,-2707.36070245,0.0001161,2]
[348645739,1736697078850,-500.0,0.00011617,2]
[348645740,1736697078860,-164.15,0.00011617,2]
[348645741,1736697078872,-500.0,0.00011617,2]
[348645742,1736697078883,-2304.99,0.00011618,2]
[348645743,1736697078892,-2029.77,0.00011618,2]
[348645744,1736697078902,-956.09,0.00011626,2]
[348645745,1736697078914,-500.0,0.00011626,2]
[348645746,1736697078924,-2118.02,0.00011626,2]
[348645747,1736697078934,-666.0,0.00011642,2]
[348645748,1736697078944,-500.0,0.00011643,2]
[348645749,1736697078954,-3599.07,0.00011643,2]
[348645750,1736697078964,-1288.35,0.00011643,2]
[348645751,1736697078974,-750.48,0.00011643,2]
[348645752,1736697078986,-500.0,0.00011643,2]
[348645753,1736697078998,-1532.98,0.00011643,2]
[348645754,1736697079008,-1003.85,0.00011643,2]
[348645755,1736697079018,-752.39,0.00011643,2]
[348645756,1736697079028,-686.26,0.00011643,2]
[348645757,1736697079038,-1517.54,0.00011643,2]
[348645758,1736697079048,-1041.09,0.00011643,2]
[348645759,1736697079058,-1690.55,0.00011643,2]
[348645760,1736697079068,-656.28,0.00011643,2]
[348645761,1736697079078,-1441.36,0.00011643,2]
[348645762,1736697079088,-957.88,0.00011643,2]
[348645763,1736697079097,-3318.45,0.00011643,2]
[348645764,1736697079107,-1586.76,0.00011643,2]
[348645765,1736697079117,-150.0,0.00011653,2]
[348645766,1736697079126,-150.0,0.00011667,2]
[348645767,1736697079135,-2707.36070245,0.00011683,2]
[348645768,1736697079146,-674.83241684,0.00011699,2]
[348645769,1736697079155,-107528.06920458,0.000117,2]
[348645770,1736697079165,-150.0,0.00011701,2]
[348645771,1736697079175,-150.0,0.00011705,2]
[348645772,1736697079184,-150.0,0.00011705,2]
[348645773,1736697079194,-150.0,0.00011705,2]
[348645774,1736697079203,-556.87398224,0.00011705,2]
[348645775,1736697079217,-150.0,0.00011705,2]
[348645776,1736697079226,-45046.88194769,0.00011705,2]
[348645777,1736697079236,-7412.63462255,0.00011705,2]
[348645778,1736697079247,-3549.91606586,0.00011705,2]
[348645779,1736697079256,-150.0,0.00011711,2]
[348645780,1736697079266,-1025.85,0.00011717,2]
[348645781,1736697079275,-1000.86,0.00011717,2]
[348645782,1736697079285,-1807.13,0.00011717,2]
[348645783,1736697079294,-1731.84,0.00011717,2]
[348645784,1736697079304,-500.0,0.00011717,2]
[348645785,1736697079314,-500.0,0.00011717,2]
[348645786,1736697079324,-500.0,0.00011717,2]
[348645787,1736697079333,-500.0,0.00011717,2]
[348645788,1736697079343,-618.29,0.00011717,2]
[348645789,1736697079352,-500.0,0.00011717,2]
[348645790,1736697079362,-432.79397846,0.00011717,2]